{"text_format":"1","workbook":"xlsx","n_sheets":7,"sheets":["Data","display","Defaults","HTML","Ged data","index","css"],"not_rendered":{"charts":0,"images":19,"macros":1,"external_links":0,"defined_names":29,"comments":1,"pivot_tables":0},"unopened":[],"bounds":{"document_bytes":16777216,"sheet_cells":100000,"rows_first":2000,"rows_last":500,"rows_between":2000,"halvings":0,"cell_chars":16384,"cell_head_chars":4096},"cells_cut":0,"cells_raw":0,"read":"whole","date_system":"1900"}

{"sheet":"Data","index":0,"n_rows":65,"n_cols":1,"rows_kept":65,"cut":false,"hidden":false,"merged":[]}
["B1:B8"]
["B1:B8"]
["B9:B16"]
["B17:B24"]
["B25:B32"]
["B33:B40"]
["B41:B48"]
["B49:B56"]
["B57:B64"]
["B65:B72"]
["B73:B80"]
["B81:B88"]
["B89:B96"]
["B97:B104"]
["B105:B112"]
["B113:B120"]
["B121:B128"]
["B129:B136"]
["B137:B144"]
["B145:B152"]
["B153:B160"]
["B161:B168"]
["B169:B176"]
["B177:B184"]
["B185:B192"]
["B193:B200"]
["B201:B208"]
["B209:B216"]
["B217:B224"]
["B225:B232"]
["B233:B240"]
["B241:B248"]
["B249:B256"]
["B257:B264"]
["B265:B272"]
["B273:B280"]
["B281:B288"]
["B289:B296"]
["B297:B304"]
["B305:B312"]
["B313:B320"]
["B321:B328"]
["B329:B336"]
["B337:B344"]
["B345:B352"]
["B353:B360"]
["B361:B368"]
["B369:B376"]
["B377:B384"]
["B385:B392"]
["B393:B400"]
["B401:B408"]
["B409:B416"]
["B417:B424"]
["B425:B432"]
["B433:B440"]
["B441:B448"]
["B449:B456"]
["B457:B464"]
["B465:B472"]
["B473:B480"]
["B481:B488"]
["B489:B496"]
["B497:B504"]
["B505:B512"]

{"sheet":"display","index":1,"n_rows":66,"n_cols":12,"rows_kept":66,"cut":false,"hidden":false,"merged":[]}
[]
[null,"Generation","Number in generation",null,null,null,null,null,"Name",{"$f":"IF(C3<=2^B3,IFERROR(\"\"&INDIRECT(\"Data!\"&INDIRECT(\"Data!A\"&TEXT(2^(Generation+3)+(C3-1)*8+1,\"#\"))),\"\"),\"Not a valid person No\")","v":""},"Name",{"$f":"IF(C3<=2^B3,IFERROR(\"\"&INDIRECT(\"Data!\"&INDIRECT(\"Data!A\"&TEXT(2^(Generation+4)+(C3-1)*16+1,\"#\"))),\"\"),\"\")","v":""}]
[null,1,1,null,null,null,null,null,"Born",""]
[null,null,null,null,null,null,null,null,"Place",""]
[null,null,null,null,null,null,null,null,"DoM",""]
[null,null,null,null,null,null,"Name",{"$f":"IF(C3<=2^B3,IFERROR(\"\"&INDIRECT(\"Data!\"&INDIRECT(\"Data!A\"&TEXT(2^(Generation+2)+(C3-1)*4+1,\"#\"))),\"\"),\"Not a valid person No\")","v":""},"Place","","Name",{"$f":"IF(C3<=2^B3,IFERROR(\"\"&INDIRECT(\"Data!\"&INDIRECT(\"Data!A\"&TEXT(2^(Generation+4)+(C3-1)*16+2,\"#\"))),\"\"),\"\")","v":""}]
[null,null,null,null,null,null,"Born","","Died",""]
[null,null,null,null,null,null,"Place","","Place",""]
[null,null,null,null,null,null,"DoM","","Other",""]
[null,null,null,null,null,null,"Place","","Name",{"$f":"IF(C3<=2^B3,IFERROR(\"\"&INDIRECT(\"Data!\"&INDIRECT(\"Data!A\"&TEXT(2^(Generation+3)+(C3-1)*8+2,\"#\"))),\"\"),\"Not a valid person No\")","v":""},"Name",{"$f":"IF(C3<=2^B3,IFERROR(\"\"&INDIRECT(\"Data!\"&INDIRECT(\"Data!A\"&TEXT(2^(Generation+4)+(C3-1)*16+3,\"#\"))),\"\"),\"\")","v":""}]
[null,null,null,null,null,null,"Died","","Born",""]
[null,null,null,null,null,null,"Place","","Place",""]
[null,null,null,null,null,null,"Other","","DoM",""]
[null,null,null,null,null,null,null,null,"Place","","Name",{"$f":"IF(C3<=2^B3,IFERROR(\"\"&INDIRECT(\"Data!\"&INDIRECT(\"Data!A\"&TEXT(2^(Generation+4)+(C3-1)*16+4,\"#\"))),\"\"),\"\")","v":""}]
[null,null,null,null,null,null,null,null,"Died",""]
[null,null,null,null,"Name",{"$f":"IF(C3<=2^B3,IFERROR(\"\"&INDIRECT(\"Data!\"&INDIRECT(\"Data!A\"&TEXT(2^(Generation+1)+(C3-1)*2+1,\"#\"))),\"\"),\"Not a valid person No\")","v":""},null,null,"Place",""]
[null,null,null,null,"Born","",null,null,"Other",""]
[null,null,null,null,"Place","",null,null,"Name",{"$f":"IF(C3<=2^B3,IFERROR(\"\"&INDIRECT(\"Data!\"&INDIRECT(\"Data!A\"&TEXT(2^(Generation+3)+(C3-1)*8+3,\"#\"))),\"\"),\"Not a valid person No\")","v":""},"Name",{"$f":"IF(C3<=2^B3,IFERROR(\"\"&INDIRECT(\"Data!\"&INDIRECT(\"Data!A\"&TEXT(2^(Generation+4)+(C3-1)*16+5,\"#\"))),\"\"),\"\")","v":""}]
[null,null,null,null,"DoM","",null,null,"Born",""]
[null,null,null,null,"Place","",null,null,"Place",""]
[null,null,null,null,"Died","","Name",{"$f":"IF(C3<=2^B3,IFERROR(\"\"&INDIRECT(\"Data!\"&INDIRECT(\"Data!A\"&TEXT(2^(Generation+2)+(C3-1)*4+2,\"#\"))),\"\"),\"Not a valid person No\")","v":""},"DoM",""]
[null,null,null,null,"Place","","Born","","Place","","Name",{"$f":"IF(C3<=2^B3,IFERROR(\"\"&INDIRECT(\"Data!\"&INDIRECT(\"Data!A\"&TEXT(2^(Generation+4)+(C3-1)*16+6,\"#\"))),\"\"),\"\")","v":""}]
[null,null,null,null,"Other","","Place","","Died",""]
[null,null,null,null,null,null,"DoM","","Place",""]
[null,null,null,null,null,null,"Place","","Other",""]
[null,null,null,null,null,null,"Died","","Name",{"$f":"IF(C3<=2^B3,IFERROR(\"\"&INDIRECT(\"Data!\"&INDIRECT(\"Data!A\"&TEXT(2^(Generation+3)+(C3-1)*8+4,\"#\"))),\"\"),\"Not a valid person No\")","v":""},"Name",{"$f":"IF(C3<=2^B3,IFERROR(\"\"&INDIRECT(\"Data!\"&INDIRECT(\"Data!A\"&TEXT(2^(Generation+4)+(C3-1)*16+7,\"#\"))),\"\"),\"\")","v":""}]
["",null,null,null,null,null,"Place","","Born",""]
[null,null,null,null,null,null,"Other","","Place",""]
[null,null,null,null,null,null,null,null,"DoM",""]
[null,"Name",{"$f":"IF(C3<=2^B3,IFERROR(\"\"&INDIRECT(\"Data!\"&INDIRECT(\"Data!A\"&TEXT(2^Generation+C3,\"#\"))),\"\"),\"Not valid person No\")","v":""},null,null,null,null,null,"Place","","Name",{"$f":"IF(C3<=2^B3,IFERROR(\"\"&INDIRECT(\"Data!\"&INDIRECT(\"Data!A\"&TEXT(2^(Generation+4)+(C3-1)*16+8,\"#\"))),\"\"),\"\")","v":""}]
[null,"Born","",null,null,null,null,null,"Died",""]
[null,"Place","",null,null,null,null,null,"Place",""]
[null,"DoM","",null,null,null,null,null,"Other",""]
[null,"Place",""]
[null,"Died","",null,null,null,null,null,"Name",{"$f":"IF(C3<=2^B3,IFERROR(\"\"&INDIRECT(\"Data!\"&INDIRECT(\"Data!A\"&TEXT(2^(Generation+3)+(C3-1)*8+5,\"#\"))),\"\"),\"Not a valid person No\")","v":""},"Name",{"$f":"IF(C3<=2^B3,IFERROR(\"\"&INDIRECT(\"Data!\"&INDIRECT(\"Data!A\"&TEXT(2^(Generation+4)+(C3-1)*16+9,\"#\"))),\"\"),\"\")","v":""}]
[null,"Place","",null,null,null,null,null,"Born",""]
[null,"Other","",null,null,null,null,null,"Place",""]
[null,null,null,null,null,null,null,null,"DoM",""]
[null,"Spouse",{"$f":"\"\"&IFERROR(IF(Generation>0,INDIRECT(\"Data!\"&IFERROR(\"\"&LEFT(INDIRECT(\"Data!A\"&TEXT(2^Generation+C3+(-1)^(C3+1),\"#\")),FIND(\":\",INDIRECT(\"Data!A\"&TEXT(2^Generation+C3+(-1)^(C3+1),\"#\")))-1),\"\")),\"\"),\"\")","v":""},null,null,null,"Name",{"$f":"IF(C3<=2^B3,IFERROR(\"\"&INDIRECT(\"Data!\"&INDIRECT(\"Data!A\"&TEXT(2^(Generation+2)+(C3-1)*4+3,\"#\"))),\"\"),\"Not a valid person No\")","v":""},"Place","","Name",{"$f":"IF(C3<=2^B3,IFERROR(\"\"&INDIRECT(\"Data!\"&INDIRECT(\"Data!A\"&TEXT(2^(Generation+4)+(C3-1)*16+10,\"#\"))),\"\"),\"\")","v":""}]
[null,null,null,null,null,null,"Born","","Died",""]
[null,null,null,null,null,null,"Place","","Place",""]
[null,null,null,null,null,null,"DoM","","Other",""]
[null,null,null,null,null,null,"Place","","Name",{"$f":"IF(C3<=2^B3,IFERROR(\"\"&INDIRECT(\"Data!\"&INDIRECT(\"Data!A\"&TEXT(2^(Generation+3)+(C3-1)*8+6,\"#\"))),\"\"),\"Not a valid person No\")","v":""},"Name",{"$f":"IF(C3<=2^B3,IFERROR(\"\"&INDIRECT(\"Data!\"&INDIRECT(\"Data!A\"&TEXT(2^(Generation+4)+(C3-1)*16+11,\"#\"))),\"\"),\"\")","v":""}]
[null,null,null,null,null,null,"Died","","Born",""]
[null,null,null,null,null,null,"Place","","Place",""]
[null,null,null,null,null,null,"Other","","DoM",""]
[null,null,null,null,null,null,null,null,"Place","","Name",{"$f":"IF(C3<=2^B3,IFERROR(\"\"&INDIRECT(\"Data!\"&INDIRECT(\"Data!A\"&TEXT(2^(Generation+4)+(C3-1)*16+12,\"#\"))),\"\"),\"\")","v":""}]
[null,null,null,null,null,null,null,null,"Died",""]
[null,null,null,null,"Name",{"$f":"IF(C3<=2^B3,IFERROR(\"\"&INDIRECT(\"Data!\"&INDIRECT(\"Data!A\"&TEXT(2^(Generation+1)+(C3-1)*2+2,\"#\"))),\"\"),\"Not valid person No\")","v":""},null,null,"Place",""]
[null,null,null,null,"Born","",null,null,"Other",""]
[null,null,null,null,"Place","",null,null,"Name",{"$f":"IF(C3<=2^B3,IFERROR(\"\"&INDIRECT(\"Data!\"&INDIRECT(\"Data!A\"&TEXT(2^(Generation+3)+(C3-1)*8+7,\"#\"))),\"\"),\"Not a valid person No\")","v":""},"Name",{"$f":"IF(C3<=2^B3,IFERROR(\"\"&INDIRECT(\"Data!\"&INDIRECT(\"Data!A\"&TEXT(2^(Generation+4)+(C3-1)*16+13,\"#\"))),\"\"),\"\")","v":""}]
[null,null,null,null,"DoM","",null,null,"Born",""]
[null,null,null,null,"Place","",null,null,"Place",""]
[null,null,null,null,"Died","",null,null,"DoM",""]
[null,null,null,null,"Place","","Name",{"$f":"IF(C3<=2^B3,IFERROR(\"\"&INDIRECT(\"Data!\"&INDIRECT(\"Data!A\"&TEXT(2^(Generation+2)+(C3-1)*4+4,\"#\"))),\"\"),\"Not a valid person No\")","v":""},"Place","","Name",{"$f":"IF(C3<=2^B3,IFERROR(\"\"&INDIRECT(\"Data!\"&INDIRECT(\"Data!A\"&TEXT(2^(Generation+4)+(C3-1)*16+14,\"#\"))),\"\"),\"\")","v":""}]
[null,null,null,null,"Other","","Born","","Died",""]
[null,null,null,null,null,null,"Place","","Place",""]
[null,null,null,null,null,null,"DoM","","Other",""]
[null,null,null,null,null,null,"Place","","Name",{"$f":"IF(C3<=2^B3,IFERROR(\"\"&INDIRECT(\"Data!\"&INDIRECT(\"Data!A\"&TEXT(2^(Generation+3)+(C3-1)*8+8,\"#\"))),\"\"),\"Not a valid person No\")","v":""},"Name",{"$f":"IF(C3<=2^B3,IFERROR(\"\"&INDIRECT(\"Data!\"&INDIRECT(\"Data!A\"&TEXT(2^(Generation+4)+(C3-1)*16+15,\"#\"))),\"\"),\"\")","v":""}]
[null,null,null,null,null,null,"Died","","Born",""]
[null,null,null,null,null,null,"Place","","Place",""]
[null,null,null,null,null,null,"Other","","DoM",""]
[null,{"$f":"\"Prepared by \"&Compiler","v":"Prepared by Nick Reddan"},null,null,null,null,null,null,"Place","","Name",{"$f":"IF(C3<=2^B3,IFERROR(\"\"&INDIRECT(\"Data!\"&INDIRECT(\"Data!A\"&TEXT(2^(Generation+4)+(C3-1)*16+16,\"#\"))),\"\"),\"\")","v":""}]
[null,null,null,null,null,null,null,null,"Died",""]
[null,null,{"$f":"\"Printed \"&TEXT(NOW(),\"dd mmmm yyyy\")","v":"Printed 26 September 2020"},null,null,null,null,null,"Place",""]
[null,null,null,null,null,null,null,null,"Other",""]

{"sheet":"Defaults","index":2,"n_rows":26,"n_cols":4,"rows_kept":26,"cut":false,"hidden":false,"merged":[]}
["Compiler","Nick Reddan","Your name"]
["off set","../"]
["my_ref","B65:B72","used in calculations do not change"]
["my person",{"$f":"INDIRECT(\"Data!\"&B3)","v":0},"used in calculations do not change"]
["html_dr",null,"Full name of the folder for your birth brief site"]
["email_adr",null,"Your e-mail address"]
["gedx_file",null,"Full name of the file and folder where you want the GEDCom to be exported to "]
["address1",null,"Your address line 1"]
["address2",null,"Your address line 2"]
["address3",null,"Your address line 3"]
["post_code",null,"Your postcode or Zip Code"]
["ph_number",null,"Your phone number"]
["No_p_indexed",{"$f":"COUNTA(index!C:C)-1","v":0},"used in calculations do not change"]
[null,"Link","Description"]
["Navig01","http://nickreddan.net/index.php","Home","Url of pages you want to appear in the navigation bar of the birth brief site"]
["Navig02","http://nickreddan.net/newspaper/index.php","Newspaper&nbsp;extracts","Url of pages you want to appear in the navigation bar of the birth brief site"]
["Navig03","http://nickreddan.net/lists/index.php","Lists&nbsp;lof &nbsp;names","Url of pages you want to appear in the navigation bar of the birth brief site"]
["Navig04","http://irishdeedsindex.net/index.php","Registry&nbsp;of&nbsp;Deed&nbsp;Index&nbsp;Project","Url of pages you want to appear in the navigation bar of the birth brief site"]
["Navig05","http://nickreddan.net/publications/index.php","Publications","Url of pages you want to appear in the navigation bar of the birth brief site"]
["Navig06","http://nickreddan.net/talks/index.php","Presentations&nbsp;from&nbsp;talks","Url of pages you want to appear in the navigation bar of the birth brief site"]
["Navig07","http://nickreddan.net/trees/index.php","Family&nbsp;trees","Url of pages you want to appear in the navigation bar of the birth brief site"]
["Navig08","http://nickreddan.net/localities/index.php","Locality&nbsp;specific","Url of pages you want to appear in the navigation bar of the birth brief site"]
["Navig09","http://nickreddan.net/tools/index.php","Tools&nbsp;and&nbsp;macros","Url of pages you want to appear in the navigation bar of the birth brief site"]
["Navig10","http://nickreddan.net/families/index.php","My&nbsp;personal&nbsp;genealogy&nbsp;interests","Url of pages you want to appear in the navigation bar of the birth brief site"]
["Navig11","http://nickreddan.net/search.htm","Search&nbsp;this&nbsp;site","Url of pages you want to appear in the navigation bar of the birth brief site"]
["Navig12","http://nickreddan.net/contact.htm","Contact","Url of pages you want to appear in the navigation bar of the birth brief site"]

{"sheet":"HTML","index":3,"n_rows":190,"n_cols":1,"rows_kept":190,"cut":false,"hidden":false,"merged":[]}
["<!DOCTYPE html>"]
["<html>"]
["<title>"]
[{"$f":"Compiler&\" &ndash; Birth brief site\"","v":"Nick Reddan &ndash; Birth brief site"}]
["</title>"]
["<link rel=\"SHORTCUT ICON\" href=\"../favicon.ico\">"]
["<link rel=\"stylesheet\" type=\"text/css\" href=\"bb.css\">"]
["</head>"]
["<body>"]
["  <div id=\"container\">"]
["        <div id=\"header\">"]
[{"$f":"\"<h1>\"&Compiler&\" &ndash;Birth brief site</h1>\"","v":"<h1>Nick Reddan &ndash;Birth brief site</h1>"}]
["</div>"]
["<div id=\"navigation\">"]
["<ul>"]
[{"$f":"IF(LEN(Navig01)>0,\"                        <li><a href=\"&CHAR(34)&Navig01&CHAR(34)&\"><b>\"&LEFT(Defaults!C15,1)&\"</b>\"&RIGHT(Defaults!C15,LEN(Defaults!C15)-1)&\"</a></li>\",\"\")","v":"                        <li><a href=\"http://nickreddan.net/index.php\"><b>H</b>ome</a></li>"}]
[{"$f":"IF(LEN(Navig02)>0,\"                        <li><a href=\"&CHAR(34)&Navig02&CHAR(34)&\"><b>\"&LEFT(Defaults!C16,1)&\"</b>\"&RIGHT(Defaults!C16,LEN(Defaults!C16)-1)&\"</a></li>\",\"\")","v":"                        <li><a href=\"http://nickreddan.net/newspaper/index.php\"><b>N</b>ewspaper&nbsp;extracts</a></li>"}]
[{"$f":"IF(LEN(Navig03)>0,\"                        <li><a href=\"&CHAR(34)&Navig03&CHAR(34)&\"><b>\"&LEFT(Defaults!C17,1)&\"</b>\"&RIGHT(Defaults!C17,LEN(Defaults!C17)-1)&\"</a></li>\",\"\")","v":"                        <li><a href=\"http://nickreddan.net/lists/index.php\"><b>L</b>ists&nbsp;lof &nbsp;names</a></li>"}]
[{"$f":"IF(LEN(Navig04)>0,\"                        <li><a href=\"&CHAR(34)&Navig04&CHAR(34)&\"><b>\"&LEFT(Defaults!C18,1)&\"</b>\"&RIGHT(Defaults!C18,LEN(Defaults!C18)-1)&\"</a></li>\",\"\")","v":"                        <li><a href=\"http://irishdeedsindex.net/index.php\"><b>R</b>egistry&nbsp;of&nbsp;Deed&nbsp;Index&nbsp;Project</a></li>"}]
[{"$f":"IF(LEN(Navig05)>0,\"                        <li><a href=\"&CHAR(34)&Navig05&CHAR(34)&\"><b>\"&LEFT(Defaults!C19,1)&\"</b>\"&RIGHT(Defaults!C19,LEN(Defaults!C19)-1)&\"</a></li>\",\"\")","v":"                        <li><a href=\"http://nickreddan.net/publications/index.php\"><b>P</b>ublications</a></li>"}]
[{"$f":"IF(LEN(Navig06)>0,\"                        <li><a href=\"&CHAR(34)&Navig06&CHAR(34)&\"><b>\"&LEFT(Defaults!C20,1)&\"</b>\"&RIGHT(Defaults!C20,LEN(Defaults!C20)-1)&\"</a></li>\",\"\")","v":"                        <li><a href=\"http://nickreddan.net/talks/index.php\"><b>P</b>resentations&nbsp;from&nbsp;talks</a></li>"}]
[{"$f":"IF(LEN(Navig07)>0,\"                        <li><a href=\"&CHAR(34)&Navig07&CHAR(34)&\"><b>\"&LEFT(Defaults!C21,1)&\"</b>\"&RIGHT(Defaults!C21,LEN(Defaults!C21)-1)&\"</a></li>\",\"\")","v":"                        <li><a href=\"http://nickreddan.net/trees/index.php\"><b>F</b>amily&nbsp;trees</a></li>"}]
[{"$f":"IF(LEN(Navig08)>0,\"                        <li><a href=\"&CHAR(34)&Navig08&CHAR(34)&\"><b>\"&LEFT(Defaults!C22,1)&\"</b>\"&RIGHT(Defaults!C22,LEN(Defaults!C22)-1)&\"</a></li>\",\"\")","v":"                        <li><a href=\"http://nickreddan.net/localities/index.php\"><b>L</b>ocality&nbsp;specific</a></li>"}]
[{"$f":"IF(LEN(Navig09)>0,\"                        <li><a href=\"&CHAR(34)&Navig09&CHAR(34)&\"><b>\"&LEFT(Defaults!C23,1)&\"</b>\"&RIGHT(Defaults!C23,LEN(Defaults!C23)-1)&\"</a></li>\",\"\")","v":"                        <li><a href=\"http://nickreddan.net/tools/index.php\"><b>T</b>ools&nbsp;and&nbsp;macros</a></li>"}]
[{"$f":"IF(LEN(Navig10)>0,\"                        <li><a href=\"&CHAR(34)&Navig10&CHAR(34)&\"><b>\"&LEFT(Defaults!C24,1)&\"</b>\"&RIGHT(Defaults!C24,LEN(Defaults!C24)-1)&\"</a></li>\",\"\")","v":"                        <li><a href=\"http://nickreddan.net/families/index.php\"><b>M</b>y&nbsp;personal&nbsp;genealogy&nbsp;interests</a></li>"}]
[{"$f":"IF(LEN(Navig11)>0,\"                        <li><a href=\"&CHAR(34)&Navig11&CHAR(34)&\"><b>\"&LEFT(Defaults!C25,1)&\"</b>\"&RIGHT(Defaults!C25,LEN(Defaults!C25)-1)&\"</a></li>\",\"\")","v":"                        <li><a href=\"http://nickreddan.net/search.htm\"><b>S</b>earch&nbsp;this&nbsp;site</a></li>"}]
[{"$f":"IF(LEN(Navig12)>0,\"                        <li><a href=\"&CHAR(34)&Navig12&CHAR(34)&\"><b>\"&LEFT(Defaults!C26,1)&\"</b>\"&RIGHT(Defaults!C26,LEN(Defaults!C26)-1)&\"</a></li>\",\"\")","v":"                        <li><a href=\"http://nickreddan.net/contact.htm\"><b>C</b>ontact</a></li>"}]
["                </ul>"]
["        </div>"]
["<div id=\"content\">"]
["<h2>This is the birth brief of"]
[{"$f":"\"\"&display!C30","v":""}]
["</h2>"]
[{"$f":"\"<h3>Who is person \"&TEXT(Number_in_generation,\"#\")&\" in generation \"&TEXT(Generation,\"#\")&\"</h3>\"","v":"<h3>Who is person 1 in generation 1</h3>"}]
["<TABLE class=\"bb\" width=100%>"]
["<tr><td rowspan=8 width=25%>"]
[{"$f":"display!B30&\": \"&display!C30&\"<br />\"","v":"Name: <br />"}]
[{"$f":"display!B31&\": \"&IF(LOWER(LEFT(display!$C$37,3))=\"liv\",\"Private\",display!C31)&\"<br />\"","v":"Born: <br />"}]
[{"$f":"display!B32&\": \"&IF(LOWER(LEFT(display!$C$37,3))=\"liv\",\"Private\",display!C32)&\"<br />\"","v":"Place: <br />"}]
[{"$f":"display!B33&\": \"&IF(LOWER(LEFT(display!$C$37,3))=\"liv\",\"Private\",display!C33)&\"<br />\"","v":"DoM: <br />"}]
[{"$f":"display!B34&\": \"&IF(LOWER(LEFT(display!$C$37,3))=\"liv\",\"Private\",display!C34)&\"<br />\"","v":"Place: <br />"}]
[{"$f":"display!B35&\": \"&IF(LOWER(LEFT(display!$C$37,3))=\"liv\",\"Private\",display!C35)&\"<br />\"","v":"Died: <br />"}]
[{"$f":"display!B36&\": \"&IF(LOWER(LEFT(display!$C$37,3))=\"liv\",\"Private\",display!C36)&\"<br />\"","v":"Place: <br />"}]
[{"$f":"display!B37&\": \"&IF(LOWER(LEFT(display!$C$37,3))=\"liv\",\"Private\",display!C37)&\"<br />\"","v":"Other: <br />"}]
[{"$f":"display!B39&\": \"&IF(LEN(display!C39)>0,\"<a href=\"&CHAR(34)&LOWER(CHAR(64+Generation))&TEXT(Number_in_generation+(-1)^(Number_in_generation+1),\"#\")&\".htm\"&CHAR(34)&\">\",\"\")&display!C39&IF(LEN(display!C39)>0,\"</a>\",\"\")&\"</td>\"","v":"Spouse: </td>"}]
["<td rowspan=4 width=25%>"]
[{"$f":"display!E16&\": \"&IF(LEN(display!F16)>0,\"<a href=\"&CHAR(34)&LOWER(CHAR(64+Generation+1))&TEXT((Number_in_generation-1)*2+1,\"#\")&\".htm\"&CHAR(34)&\">\",\"\")&display!F16&IF(LEN(display!F16)>0,\"</a>\",\"\")&\"<br />\"","v":"Name: <br />"}]
[{"$f":"display!E17&\": \"&IF(LOWER(LEFT(display!$F$23,3))=\"liv\",\"Private\",display!F17)&\"<br />\"","v":"Born: <br />"}]
[{"$f":"display!E18&\": \"&IF(LOWER(LEFT(display!$F$23,3))=\"liv\",\"Private\",display!F18)&\"<br />\"","v":"Place: <br />"}]
[{"$f":"display!E19&\": \"&IF(LOWER(LEFT(display!$F$23,3))=\"liv\",\"Private\",display!F19)&\"<br />\"","v":"DoM: <br />"}]
[{"$f":"display!E20&\": \"&IF(LOWER(LEFT(display!$F$23,3))=\"liv\",\"Private\",display!F20)&\"<br />\"","v":"Place: <br />"}]
[{"$f":"display!E21&\": \"&IF(LOWER(LEFT(display!$F$23,3))=\"liv\",\"Private\",display!F21)&\"<br />\"","v":"Died: <br />"}]
[{"$f":"display!E22&\": \"&IF(LOWER(LEFT(display!$F$23,3))=\"liv\",\"Private\",display!F22)&\"<br />\"","v":"Place: <br />"}]
[{"$f":"display!E23&\": \"&IF(LOWER(LEFT(display!$F$23,3))=\"liv\",\"Private\",display!F23)&\"</td>\"","v":"Other: </td>"}]
["<td rowspan=2 width=25%>"]
[{"$f":"display!G6&\": \"&IF(LEN(display!H6)>0,\"<a href=\"&CHAR(34)&LOWER(CHAR(64+Generation+2))&TEXT((Number_in_generation-1)*4+1,\"#\")&\".htm\"&CHAR(34)&\">\",\"\")&display!H6&IF(LEN(display!H6)>0,\"</a>\",\"\")&\"<br />\"","v":"Name: <br />"}]
[{"$f":"display!G7&\": \"&IF(LOWER(LEFT(display!$H$13,3))=\"liv\",\"Private\",display!H7)&\"<br />\"","v":"Born: <br />"}]
[{"$f":"display!G8&\": \"&IF(LOWER(LEFT(display!$H$13,3))=\"liv\",\"Private\",display!H8)&\"<br />\"","v":"Place: <br />"}]
[{"$f":"display!G9&\": \"&IF(LOWER(LEFT(display!$H$13,3))=\"liv\",\"Private\",display!H9)&\"<br />\"","v":"DoM: <br />"}]
[{"$f":"display!G10&\": \"&IF(LOWER(LEFT(display!$H$13,3))=\"liv\",\"Private\",display!H10)&\"<br />\"","v":"Place: <br />"}]
[{"$f":"display!G11&\": \"&IF(LOWER(LEFT(display!$H$13,3))=\"liv\",\"Private\",display!H11)&\"<br />\"","v":"Died: <br />"}]
[{"$f":"display!G12&\": \"&IF(LOWER(LEFT(display!$H$13,3))=\"liv\",\"Private\",display!H12)&\"<br />\"","v":"Place: <br />"}]
[{"$f":"display!G13&\": \"&IF(LOWER(LEFT(display!$H$13,3))=\"liv\",\"Private\",display!H13)&\"</td>\"","v":"Other: </td>"}]
["<td>"]
[{"$f":"display!I2&\": \"&IF(LEN(display!J2)>0,\"<a href=\"&CHAR(34)&LOWER(CHAR(64+Generation+3))&TEXT((Number_in_generation-1)*8+1,\"#\")&\".htm\"&CHAR(34)&\">\",\"\")&display!J2&IF(LEN(display!J2)>0,\"</a>\",\"\")&\"<br />\"","v":"Name: <br />"}]
[{"$f":"display!I3&\": \"&IF(LOWER(LEFT(display!$J$9,3))=\"liv\",\"Private\",display!J3)&\"<br />\"","v":"Born: <br />"}]
[{"$f":"display!I4&\": \"&IF(LOWER(LEFT(display!$J$9,3))=\"liv\",\"Private\",display!J4)&\"<br />\"","v":"Place: <br />"}]
[{"$f":"display!I5&\": \"&IF(LOWER(LEFT(display!$J$9,3))=\"liv\",\"Private\",display!J5)&\"<br />\"","v":"DoM: <br />"}]
[{"$f":"display!I6&\": \"&IF(LOWER(LEFT(display!$J$9,3))=\"liv\",\"Private\",display!J6)&\"<br />\"","v":"Place: <br />"}]
[{"$f":"display!I7&\": \"&IF(LOWER(LEFT(display!$J$9,3))=\"liv\",\"Private\",display!J7)&\"<br />\"","v":"Died: <br />"}]
[{"$f":"display!I8&\": \"&IF(LOWER(LEFT(display!$J$9,3))=\"liv\",\"Private\",display!J8)&\"<br />\"","v":"Place: <br />"}]
[{"$f":"display!I9&\": \"&IF(LOWER(LEFT(display!$J$9,3))=\"liv\",\"Private\",display!J9)&\"<br />\"","v":"Other: <br />"}]
["</td></tr><tr>"]
["<td>"]
[{"$f":"display!I10&\": \"&IF(LEN(display!J10)>0,\"<a href=\"&CHAR(34)&LOWER(CHAR(64+Generation+3))&TEXT((Number_in_generation-1)*8+2,\"#\")&\".htm\"&CHAR(34)&\">\",\"\")&display!J10&IF(LEN(display!J10)>0,\"</a>\",\"\")&\"<br />\"","v":"Name: <br />"}]
[{"$f":"display!I11&\": \"&IF(LOWER(LEFT(display!$J$17,3))=\"liv\",\"Private\",display!J11)&\"<br />\"","v":"Born: <br />"}]
[{"$f":"display!I12&\": \"&IF(LOWER(LEFT(display!$J$17,3))=\"liv\",\"Private\",display!J12)&\"<br />\"","v":"Place: <br />"}]
[{"$f":"display!I13&\": \"&IF(LOWER(LEFT(display!$J$17,3))=\"liv\",\"Private\",display!J13)&\"<br />\"","v":"DoM: <br />"}]
[{"$f":"display!I14&\": \"&IF(LOWER(LEFT(display!$J$17,3))=\"liv\",\"Private\",display!J14)&\"<br />\"","v":"Place: <br />"}]
[{"$f":"display!I15&\": \"&IF(LOWER(LEFT(display!$J$17,3))=\"liv\",\"Private\",display!J15)&\"<br />\"","v":"Died: <br />"}]
[{"$f":"display!I16&\": \"&IF(LOWER(LEFT(display!$J$17,3))=\"liv\",\"Private\",display!J16)&\"<br />\"","v":"Place: <br />"}]
[{"$f":"display!I17&\": \"&IF(LOWER(LEFT(display!$J$17,3))=\"liv\",\"Private\",display!J17)&\"<br />\"","v":"Other: <br />"}]
["</td></tr><tr>"]
["<td rowspan=2 width=25%>"]
[{"$f":"display!G21&\": \"&IF(LEN(display!H21)>0,\"<a href=\"&CHAR(34)&LOWER(CHAR(64+Generation+2))&TEXT((Number_in_generation-1)*4+2,\"#\")&\".htm\"&CHAR(34)&\">\",\"\")&display!H21&IF(LEN(display!H21)>0,\"</a>\",\"\")&\"<br />\"","v":"Name: <br />"}]
[{"$f":"display!G22&\": \"&IF(LOWER(LEFT(display!$H$28,3))=\"liv\",\"Private\",display!H22)&\"<br />\"","v":"Born: <br />"}]
[{"$f":"display!G23&\": \"&IF(LOWER(LEFT(display!$H$28,3))=\"liv\",\"Private\",display!H23)&\"<br />\"","v":"Place: <br />"}]
[{"$f":"display!G24&\": \"&IF(LOWER(LEFT(display!$H$28,3))=\"liv\",\"Private\",display!H24)&\"<br />\"","v":"DoM: <br />"}]
[{"$f":"display!G25&\": \"&IF(LOWER(LEFT(display!$H$28,3))=\"liv\",\"Private\",display!H25)&\"<br />\"","v":"Place: <br />"}]
[{"$f":"display!G26&\": \"&IF(LOWER(LEFT(display!$H$28,3))=\"liv\",\"Private\",display!H26)&\"<br />\"","v":"Died: <br />"}]
[{"$f":"display!G27&\": \"&IF(LOWER(LEFT(display!$H$28,3))=\"liv\",\"Private\",display!H27)&\"<br />\"","v":"Place: <br />"}]
[{"$f":"display!G28&\": \"&IF(LOWER(LEFT(display!$H$28,3))=\"liv\",\"Private\",display!H28)&\"</td>\"","v":"Other: </td>"}]
["<td>"]
[{"$f":"display!I18&\": \"&IF(LEN(display!J18)>0,\"<a href=\"&CHAR(34)&LOWER(CHAR(64+Generation+3))&TEXT((Number_in_generation-1)*8+3,\"#\")&\".htm\"&CHAR(34)&\">\",\"\")&display!J18&IF(LEN(display!J18)>0,\"</a>\",\"\")&\"<br />\"","v":"Name: <br />"}]
[{"$f":"display!I19&\": \"&IF(LOWER(LEFT(display!$J$25,3))=\"liv\",\"Private\",display!J19)&\"<br />\"","v":"Born: <br />"}]
[{"$f":"display!I20&\": \"&IF(LOWER(LEFT(display!$J$25,3))=\"liv\",\"Private\",display!J20)&\"<br />\"","v":"Place: <br />"}]
[{"$f":"display!I21&\": \"&IF(LOWER(LEFT(display!$J$25,3))=\"liv\",\"Private\",display!J21)&\"<br />\"","v":"DoM: <br />"}]
[{"$f":"display!I22&\": \"&IF(LOWER(LEFT(display!$J$25,3))=\"liv\",\"Private\",display!J22)&\"<br />\"","v":"Place: <br />"}]
[{"$f":"display!I23&\": \"&IF(LOWER(LEFT(display!$J$25,3))=\"liv\",\"Private\",display!J23)&\"<br />\"","v":"Died: <br />"}]
[{"$f":"display!I24&\": \"&IF(LOWER(LEFT(display!$J$25,3))=\"liv\",\"Private\",display!J24)&\"<br />\"","v":"Place: <br />"}]
[{"$f":"display!I25&\": \"&IF(LOWER(LEFT(display!$J$25,3))=\"liv\",\"Private\",display!J25)&\"<br />\"","v":"Other: <br />"}]
["</td></tr><tr>"]
["<td>"]
[{"$f":"display!I26&\": \"&IF(LEN(display!J26)>0,\"<a href=\"&CHAR(34)&LOWER(CHAR(64+Generation+3))&TEXT((Number_in_generation-1)*8+4,\"#\")&\".htm\"&CHAR(34)&\">\",\"\")&display!J26&IF(LEN(display!J26)>0,\"</a>\",\"\")&\"<br />\"","v":"Name: <br />"}]
[{"$f":"display!I27&\": \"&IF(LOWER(LEFT(display!$J$33,3))=\"liv\",\"Private\",display!J27)&\"<br />\"","v":"Born: <br />"}]
[{"$f":"display!I28&\": \"&IF(LOWER(LEFT(display!$J$33,3))=\"liv\",\"Private\",display!J28)&\"<br />\"","v":"Place: <br />"}]
[{"$f":"display!I29&\": \"&IF(LOWER(LEFT(display!$J$33,3))=\"liv\",\"Private\",display!J29)&\"<br />\"","v":"DoM: <br />"}]
[{"$f":"display!I30&\": \"&IF(LOWER(LEFT(display!$J$33,3))=\"liv\",\"Private\",display!J30)&\"<br />\"","v":"Place: <br />"}]
[{"$f":"display!I31&\": \"&IF(LOWER(LEFT(display!$J$33,3))=\"liv\",\"Private\",display!J31)&\"<br />\"","v":"Died: <br />"}]
[{"$f":"display!I32&\": \"&IF(LOWER(LEFT(display!$J$33,3))=\"liv\",\"Private\",display!J32)&\"<br />\"","v":"Place: <br />"}]
[{"$f":"display!I33&\": \"&IF(LOWER(LEFT(display!$J$33,3))=\"liv\",\"Private\",display!J33)&\"<br />\"","v":"Other: <br />"}]
["</td></tr><tr>"]
["<td rowspan=4 width=25%>"]
[{"$f":"display!E49&\": \"&IF(LEN(display!F49)>0,\"<a href=\"&CHAR(34)&LOWER(CHAR(64+Generation+1))&TEXT((Number_in_generation-1)*2+2,\"#\")&\".htm\"&CHAR(34)&\">\",\"\")&display!F49&IF(LEN(display!F49)>0,\"</a>\",\"\")&\"<br />\"","v":"Name: <br />"}]
[{"$f":"display!E50&\": \"&IF(LOWER(LEFT(display!$F$56,3))=\"liv\",\"Private\",display!F50)&\"<br />\"","v":"Born: <br />"}]
[{"$f":"display!E51&\": \"&IF(LOWER(LEFT(display!$F$56,3))=\"liv\",\"Private\",display!F51)&\"<br />\"","v":"Place: <br />"}]
[{"$f":"display!E52&\": \"&IF(LOWER(LEFT(display!$F$56,3))=\"liv\",\"Private\",display!F52)&\"<br />\"","v":"DoM: <br />"}]
[{"$f":"display!E53&\": \"&IF(LOWER(LEFT(display!$F$56,3))=\"liv\",\"Private\",display!F53)&\"<br />\"","v":"Place: <br />"}]
[{"$f":"display!E54&\": \"&IF(LOWER(LEFT(display!$F$56,3))=\"liv\",\"Private\",display!F54)&\"<br />\"","v":"Died: <br />"}]
[{"$f":"display!E55&\": \"&IF(LOWER(LEFT(display!$F$56,3))=\"liv\",\"Private\",display!F55)&\"<br />\"","v":"Place: <br />"}]
[{"$f":"display!E56&\": \"&IF(LOWER(LEFT(display!$F$56,3))=\"liv\",\"Private\",display!F56)&\"</td>\"","v":"Other: </td>"}]
["<td rowspan=2 width=25%>"]
[{"$f":"display!G39&\": \"&IF(LEN(display!H39)>0,\"<a href=\"&CHAR(34)&LOWER(CHAR(64+Generation+2))&TEXT((Number_in_generation-1)*4+3,\"#\")&\".htm\"&CHAR(34)&\">\",\"\")&display!H39&IF(LEN(display!H39)>0,\"</a>\",\"\")&\"<br />\"","v":"Name: <br />"}]
[{"$f":"display!G40&\": \"&IF(LOWER(LEFT(display!$H$46,3))=\"liv\",\"Private\",display!H40)&\"<br />\"","v":"Born: <br />"}]
[{"$f":"display!G41&\": \"&IF(LOWER(LEFT(display!$H$46,3))=\"liv\",\"Private\",display!H41)&\"<br />\"","v":"Place: <br />"}]
[{"$f":"display!G42&\": \"&IF(LOWER(LEFT(display!$H$46,3))=\"liv\",\"Private\",display!H42)&\"<br />\"","v":"DoM: <br />"}]
[{"$f":"display!G43&\": \"&IF(LOWER(LEFT(display!$H$46,3))=\"liv\",\"Private\",display!H43)&\"<br />\"","v":"Place: <br />"}]
[{"$f":"display!G44&\": \"&IF(LOWER(LEFT(display!$H$46,3))=\"liv\",\"Private\",display!H44)&\"<br />\"","v":"Died: <br />"}]
[{"$f":"display!G45&\": \"&IF(LOWER(LEFT(display!$H$46,3))=\"liv\",\"Private\",display!H45)&\"<br />\"","v":"Place: <br />"}]
[{"$f":"display!G46&\": \"&IF(LOWER(LEFT(display!$H$46,3))=\"liv\",\"Private\",display!H46)&\"</td>\"","v":"Other: </td>"}]
["<td>"]
[{"$f":"display!I35&\": \"&IF(LEN(display!J35)>0,\"<a href=\"&CHAR(34)&LOWER(CHAR(64+Generation+3))&TEXT((Number_in_generation-1)*8+5,\"#\")&\".htm\"&CHAR(34)&\">\",\"\")&display!J35&IF(LEN(display!J35)>0,\"</a>\",\"\")&\"<br />\"","v":"Name: <br />"}]
[{"$f":"display!I36&\": \"&IF(LOWER(LEFT(display!$J$42,3))=\"liv\",\"Private\",display!J36)&\"<br />\"","v":"Born: <br />"}]
[{"$f":"display!I37&\": \"&IF(LOWER(LEFT(display!$J$42,3))=\"liv\",\"Private\",display!J37)&\"<br />\"","v":"Place: <br />"}]
[{"$f":"display!I38&\": \"&IF(LOWER(LEFT(display!$J$42,3))=\"liv\",\"Private\",display!J38)&\"<br />\"","v":"DoM: <br />"}]
[{"$f":"display!I39&\": \"&IF(LOWER(LEFT(display!$J$42,3))=\"liv\",\"Private\",display!J39)&\"<br />\"","v":"Place: <br />"}]
[{"$f":"display!I40&\": \"&IF(LOWER(LEFT(display!$J$42,3))=\"liv\",\"Private\",display!J40)&\"<br />\"","v":"Died: <br />"}]
[{"$f":"display!I41&\": \"&IF(LOWER(LEFT(display!$J$42,3))=\"liv\",\"Private\",display!J41)&\"<br />\"","v":"Place: <br />"}]
[{"$f":"display!I42&\": \"&IF(LOWER(LEFT(display!$J$42,3))=\"liv\",\"Private\",display!J42)&\"<br />\"","v":"Other: <br />"}]
["</td></tr><tr>"]
["<td>"]
[{"$f":"display!I43&\": \"&IF(LEN(display!J43)>0,\"<a href=\"&CHAR(34)&LOWER(CHAR(64+Generation+3))&TEXT((Number_in_generation-1)*8+6,\"#\")&\".htm\"&CHAR(34)&\">\",\"\")&display!J43&IF(LEN(display!J43)>0,\"</a>\",\"\")&\"<br />\"","v":"Name: <br />"}]
[{"$f":"display!I44&\": \"&IF(LOWER(LEFT(display!$J$50,3))=\"liv\",\"Private\",display!J44)&\"<br />\"","v":"Born: <br />"}]
[{"$f":"display!I45&\": \"&IF(LOWER(LEFT(display!$J$50,3))=\"liv\",\"Private\",display!J45)&\"<br />\"","v":"Place: <br />"}]
[{"$f":"display!I46&\": \"&IF(LOWER(LEFT(display!$J$50,3))=\"liv\",\"Private\",display!J46)&\"<br />\"","v":"DoM: <br />"}]
[{"$f":"display!I47&\": \"&IF(LOWER(LEFT(display!$J$50,3))=\"liv\",\"Private\",display!J47)&\"<br />\"","v":"Place: <br />"}]
[{"$f":"display!I48&\": \"&IF(LOWER(LEFT(display!$J$50,3))=\"liv\",\"Private\",display!J48)&\"<br />\"","v":"Died: <br />"}]
[{"$f":"display!I49&\": \"&IF(LOWER(LEFT(display!$J$50,3))=\"liv\",\"Private\",display!J49)&\"<br />\"","v":"Place: <br />"}]
[{"$f":"display!I50&\": \"&IF(LOWER(LEFT(display!$J$50,3))=\"liv\",\"Private\",display!J50)&\"<br />\"","v":"Other: <br />"}]
["</td></tr><tr>"]
["<td rowspan=2 width=25%>"]
[{"$f":"display!G55&\": \"&IF(LEN(display!H55)>0,\"<a href=\"&CHAR(34)&LOWER(CHAR(64+Generation+2))&TEXT((Number_in_generation-1)*4+4,\"#\")&\".htm\"&CHAR(34)&\">\",\"\")&display!H55&IF(LEN(display!H55)>0,\"</a>\",\"\")&\"<br />\"","v":"Name: <br />"}]
[{"$f":"display!G56&\": \"&IF(LOWER(LEFT(display!$H$62,3))=\"liv\",\"Private\",display!H56)&\"<br />\"","v":"Born: <br />"}]
[{"$f":"display!G57&\": \"&IF(LOWER(LEFT(display!$H$62,3))=\"liv\",\"Private\",display!H57)&\"<br />\"","v":"Place: <br />"}]
[{"$f":"display!G58&\": \"&IF(LOWER(LEFT(display!$H$62,3))=\"liv\",\"Private\",display!H58)&\"<br />\"","v":"DoM: <br />"}]
[{"$f":"display!G59&\": \"&IF(LOWER(LEFT(display!$H$62,3))=\"liv\",\"Private\",display!H59)&\"<br />\"","v":"Place: <br />"}]
[{"$f":"display!G60&\": \"&IF(LOWER(LEFT(display!$H$62,3))=\"liv\",\"Private\",display!H60)&\"<br />\"","v":"Died: <br />"}]
[{"$f":"display!G61&\": \"&IF(LOWER(LEFT(display!$H$62,3))=\"liv\",\"Private\",display!H61)&\"<br />\"","v":"Place: <br />"}]
[{"$f":"display!G62&\": \"&IF(LOWER(LEFT(display!$H$62,3))=\"liv\",\"Private\",display!H62)&\"</td>\"","v":"Other: </td>"}]
["<td>"]
[{"$f":"display!I51&\": \"&IF(LEN(display!J51)>0,\"<a href=\"&CHAR(34)&LOWER(CHAR(64+Generation+3))&TEXT((Number_in_generation-1)*8+7,\"#\")&\".htm\"&CHAR(34)&\">\",\"\")&display!J51&IF(LEN(display!J51)>0,\"</a>\",\"\")&\"<br />\"","v":"Name: <br />"}]
[{"$f":"display!I52&\": \"&IF(LOWER(LEFT(display!$J$58,3))=\"liv\",\"Private\",display!J52)&\"<br />\"","v":"Born: <br />"}]
[{"$f":"display!I53&\": \"&IF(LOWER(LEFT(display!$J$58,3))=\"liv\",\"Private\",display!J53)&\"<br />\"","v":"Place: <br />"}]
[{"$f":"display!I54&\": \"&IF(LOWER(LEFT(display!$J$58,3))=\"liv\",\"Private\",display!J54)&\"<br />\"","v":"DoM: <br />"}]
[{"$f":"display!I55&\": \"&IF(LOWER(LEFT(display!$J$58,3))=\"liv\",\"Private\",display!J55)&\"<br />\"","v":"Place: <br />"}]
[{"$f":"display!I56&\": \"&IF(LOWER(LEFT(display!$J$58,3))=\"liv\",\"Private\",display!J56)&\"<br />\"","v":"Died: <br />"}]
[{"$f":"display!I57&\": \"&IF(LOWER(LEFT(display!$J$58,3))=\"liv\",\"Private\",display!J57)&\"<br />\"","v":"Place: <br />"}]
[{"$f":"display!I58&\": \"&IF(LOWER(LEFT(display!$J$58,3))=\"liv\",\"Private\",display!J58)&\"<br />\"","v":"Other: <br />"}]
["</td></tr><tr>"]
["<td>"]
[{"$f":"display!I59&\": \"&IF(LEN(display!J59)>0,\"<a href=\"&CHAR(34)&LOWER(CHAR(64+Generation+3))&TEXT((Number_in_generation-1)*8+8,\"#\")&\".htm\"&CHAR(34)&\">\",\"\")&display!J59&IF(LEN(display!J59)>0,\"</a>\",\"\")&\"<br />\"","v":"Name: <br />"}]
[{"$f":"display!I60&\": \"&IF(LOWER(LEFT(display!$J$66,3))=\"liv\",\"Private\",display!J60)&\"<br />\"","v":"Born: <br />"}]
[{"$f":"display!I61&\": \"&IF(LOWER(LEFT(display!$J$66,3))=\"liv\",\"Private\",display!J61)&\"<br />\"","v":"Place: <br />"}]
[{"$f":"display!I62&\": \"&IF(LOWER(LEFT(display!$J$66,3))=\"liv\",\"Private\",display!J62)&\"<br />\"","v":"DoM: <br />"}]
[{"$f":"display!I63&\": \"&IF(LOWER(LEFT(display!$J$66,3))=\"liv\",\"Private\",display!J63)&\"<br />\"","v":"Place: <br />"}]
[{"$f":"display!I64&\": \"&IF(LOWER(LEFT(display!$J$66,3))=\"liv\",\"Private\",display!J64)&\"<br />\"","v":"Died: <br />"}]
[{"$f":"display!I65&\": \"&IF(LOWER(LEFT(display!$J$66,3))=\"liv\",\"Private\",display!J65)&\"<br />\"","v":"Place: <br />"}]
[{"$f":"display!I66&\": \"&IF(LOWER(LEFT(display!$J$66,3))=\"liv\",\"Private\",display!J66)&\"<br />\"","v":"Other: <br />"}]
["</td></tr>"]
["</table>"]
[{"$f":"IF(Generation>0,\"<p><a href=\"&CHAR(34)&LOWER(CHAR(64+ Generation-1))&TEXT(INT((Number_in_generation + 1)/2),\"#\")&\".htm\"&CHAR(34)&\">Child of \"&display!C30&\"</a>\",\"\")&\"</p>\"","v":"<p><a href=\"@1.htm\">Child of </a></p>"}]
["<h3><a href=\"p_index.htm\">Index of persons in this birth brief</a></h3>"]
["</div>"]
["        <div id=\"footer\">"]
["                <h4>Copyright &copy; Nick Reddan, 2014<br />"]
[{"$f":"\"Last updated \"&TEXT(NOW(),\"dd mmmm yyyy\")&\"</h4>\"","v":"Last updated 26 September 2020</h4>"}]
["</div>"]
["</div>"]
["</body>"]
["</html>"]

{"sheet":"Ged data","index":4,"n_rows":19,"n_cols":5,"rows_kept":19,"cut":false,"hidden":false,"merged":[]}
[{"$f":"\"0 @\"&IF(Generation=0,\"AA\",CHAR(Generation+64))&TEXT(Number_in_generation,\"#\")&\"@ INDI\"","v":"0 @A1@ INDI"},null,0,null,"0 HEAD"]
[{"$f":"\"1 NAME \"&B3&\" / \"&B4&\" /\"","v":"1 NAME  /  /"},{"$f":"display!C30","v":""},{"$f":"IFERROR(FIND(\" \",$B$2,C1+1),0)","v":0},null,"1 SOUR GUS-Excel"]
[{"$f":"IF(Generation>0,\"1 SEX \"&IF(INT(Number_in_generation/2)*2 =Number_in_generation,\"F\",\"M\"),\"\")","v":"1 SEX M"},{"$f":"TRIM(LEFT(B2,MAX(C1:C10)))","v":""},{"$f":"IFERROR(FIND(\" \",$B$2,C2+1),0)","v":0},null,"1 SUBM @SUB1@"]
["1 BIRT",{"$f":"RIGHT(B2,LEN(B2)-MAX(C1:C10))","v":""},0,null,"1 GEDC"]
[{"$f":"\"2 DATE \"&display!C31","v":"2 DATE "},null,0,null,"2 VERS 5.5"]
[{"$f":"\"2 PLAC \"&display!C32","v":"2 PLAC "},null,0,null,"2 FORM Lineage-Linked"]
["1 DEAT",null,0,null,"1 CHAR IBMPC"]
[{"$f":"\"2 DATE \"&display!C35","v":"2 DATE "},null,0,null,{"$f":"\"1 FILE \" & gedx_file","v":"1 FILE "}]
[{"$f":"\"2 PLAC \"&display!C36","v":"2 PLAC "},null,0,null,"0 @SUB1@ SUBM"]
[{"$f":"IF(Generation>0,\"1 FAMS @\"&TEXT((Number_in_generation-1)*2+1,\"#\")&CHAR(Generation+64)&\"@\",\"\")","v":"1 FAMS @1A@"},null,0,null,{"$f":"\"1 NAME \" & Compiler","v":"1 NAME Nick Reddan"}]
[{"$f":"IF(LEN(display!C37)>0,\"1 EVEN\",\"\")","v":""},null,null,null,{"$f":"\"1 ADDR \" & address1","v":"1 ADDR "}]
[{"$f":"IF(LEN(display!C37)>0,\"2 \"&display!C37,\"\")","v":""},null,null,null,{"$f":"\"2 CONT \" & address2","v":"2 CONT "}]
[{"$f":"IF(AND(Generation>0,INT(Number_in_generation/2)*2 =Number_in_generation-1),\"0 @\"&TEXT((Number_in_generation-1)*2+1,\"#\")&CHAR(Generation+64)&\"@ FAM\",\"\")","v":"0 @1A@ FAM"},null,null,null,{"$f":"\"2 CONT \" & address3","v":"2 CONT "}]
[{"$f":"IF(AND(Generation>0,INT(Number_in_generation/2)*2 =Number_in_generation-1),\"1 MARR\",\"\")","v":"1 MARR"},null,null,null,{"$f":"\"2 CONT \" & email_adr","v":"2 CONT "}]
[{"$f":"IF(AND(Generation>0,INT(Number_in_generation/2)*2 =Number_in_generation-1),\"2 DATE \"&display!C33,\"\")","v":"2 DATE "},null,null,null,{"$f":"\"2 PHON \" & ph_number","v":"2 PHON "}]
[{"$f":"IF(AND(Generation>0,INT(Number_in_generation/2)*2 =Number_in_generation-1),\"2 PLAC \"&display!C34,\"\")","v":"2 PLAC "}]
[{"$f":"IF(AND(Generation>0,INT(Number_in_generation/2)*2 =Number_in_generation-1),\"1 HUSB @\"&IF(Generation=0,\"AA\",CHAR(Generation+64))&TEXT(Number_in_generation,\"#\")&\"@\",\"\")","v":"1 HUSB @A1@"}]
[{"$f":"IF(AND(Generation>0,INT(Number_in_generation/2)*2 =Number_in_generation-1),\"1 WIFE @\"&IF(Generation=0,\"AA\",CHAR(Generation+64))&TEXT(Number_in_generation+1,\"#\")&\"@\",\"\")","v":"1 WIFE @A2@"}]
[{"$f":"IF(AND(Generation>0,INT(Number_in_generation/2)*2 =Number_in_generation-1),IF(Generation>0,\"1 CHIL @\"&IF(Generation>1,CHAR(Generation+64-1),\"AA\")&TEXT(INT((Number_in_generation+1)/2),\"#\")&\"@\",\"\"),\"\")","v":"1 CHIL @AA1@"}]

{"sheet":"index","index":5,"n_rows":41,"n_cols":14,"rows_kept":41,"cut":false,"hidden":false,"merged":[]}
["Gen","No in Gen","Name","Family Name"]
[]
[]
[]
[null,null,null,null,null,null,null,"Person",18,98305,{"$f":"IF(I5<18,1,VLOOKUP(I5,index!$M$22:$N$25,2)+TRUNC(ABS(J5-1)/(256*1024)))","v":2},{"$f":"IF(I5<10,1,IF(I5<18,VLOOKUP(I5,index!$K$22:$L$29,2)+TRUNC(ABS(J5-1)/1024),IF(MOD(TRUNC(J5/1024)+1,256)=0,256,MOD(TRUNC((J5-1)/1024),256)+1)))","v":97},{"$f":"IF(I5>9,8*(J5-TRUNC((J5-1)/1024)*1024-1)+1,8*(J5-2+VLOOKUP(I5,index!$I$22:$J$31,2))+1)","v":1}]
[]
[]
[]
[null,null,null,null,null,null,null,null,"Gentab1",null,"Gentab2",null,"Gentab3"]
[null,null,null,null,null,null,null,null,1,0,2,10,2,18]
[null,null,null,null,null,null,null,null,3,1,3,11,3,19]
[null,null,null,null,null,null,null,null,5,2,5,12,5,20]
[null,null,null,null,null,null,null,null,9,3,9,13]
[null,null,null,null,null,null,null,null,17,4,17,14]
[null,null,null,null,null,null,null,null,33,5,33,15]
[null,null,null,null,null,null,null,null,65,6,65,16]
[null,null,null,null,null,null,null,null,129,7,129,17]
[null,null,null,null,null,null,null,null,257,8]
[null,null,null,null,null,null,null,null,513,9]
[]
[null,null,null,null,null,null,null,null,"Gentab4",null,"Gentab5",null,"Gentab6"]
[null,null,null,null,null,null,null,null,0,1,10,2,18,2]
[null,null,null,null,null,null,null,null,1,3,11,3,19,3]
[null,null,null,null,null,null,null,null,2,5,12,5,20,5]
[null,null,null,null,null,null,null,null,3,9,13,9,21,{"$f":"#VALUE!","v":{"$error":"#VALUE!"}}]
[null,null,null,null,null,null,null,null,4,17,14,17]
[null,null,null,null,null,null,null,null,5,33,15,33]
[null,null,null,null,null,null,null,null,6,65,16,65]
[null,null,null,null,null,null,null,null,7,129,17,129]
[null,null,null,null,null,null,null,null,8,257]
[null,null,null,null,null,null,null,null,9,513]
[]
[]
[null,null,null,null,null,null,null,"a_num","A",1]
[null,null,null,null,null,null,null,null,"B",2]
[null,null,null,null,null,null,null,null,"C",3]
[null,null,null,null,null,null,null,null,"D",4]
[null,null,null,null,null,null,null,null,"E",5]
[null,null,null,null,null,null,null,null,"F",6]
[null,null,null,null,null,null,null,null,"G",7]
[null,null,null,null,null,null,null,null,"H",8]

{"sheet":"css","index":6,"n_rows":290,"n_cols":2,"rows_kept":290,"cut":false,"hidden":false,"merged":[]}
["p {font-family:\"Arial\"}"]
["h1 {font-family:\"Arial\"}"]
["h2 {font-family:\"Arial\"}"]
["h3 {font-family:\"Arial\"}"]
["h4 {font-family:\"Arial\"}"]
["h5 {font-family:\"Arial\"}"]
["ul {font-family:\"Arial\"}"]
["th {font-family:\"Arial\"}"]
["td {font-family:\"Arial\"}"]
["ol {font-family:\"Arial\"}"]
["#container"]
["{"]
["margin: 0 30px;"]
["background: #FFFFFF;"]
["}"]
[]
["#header"]
["{"]
["background-color:#610B0B;"]
["background-image: url('bridge.jpg');"]
["background-repeat:no-repeat;"]
["padding: 0px;"]
["}"]
[]
["#header h1"]
["{"]
["color: #FFFFFF;"]
["text-align: center;"]
["}"]
[]
["#navigation"]
["{"]
["float: left;"]
["width: 100%;"]
["background: #28A828;"]
["}"]
[]
["#navigation ul"]
["{"]
["margin: 0;"]
["padding: 0;"]
["font-family:\"Arial\""]
["}"]
[]
["#navigation ul li"]
["{"]
["list-style-type: none;"]
["display: inline;"]
["}"]
[]
["#navigation li a"]
["{"]
["display: block;"]
["float: left;"]
["padding: 5px 10px;"]
["color: #fff;"]
["text-decoration: none;"]
["border-right: 1px solid #fff;"]
["}"]
[]
["#navigation li a:hover { background: #610B0B; }"]
[]
["#content"]
["{"]
["clear: left;"]
["padding: 20px;"]
["background: #E3F6CE;"]
["}     "]
[]
["#content h2"]
["{"]
["color: #000;"]
["font-size: 160%;"]
["margin: 0 0 .5em;"]
["}"]
[]
["table.bb {"]
["border-collapse:collapse;}"]
[]
["table.bb th {"]
[]
["padding: 8px;"]
["font-family:\"Arial\";"]
["}"]
[]
["table.bb td {"]
[]
["padding: 8px;"]
["font-family:\"Arial\";"]
["}"]
[]
["#footer"]
["{"]
["background: #610B0B;"]
["text-align: right;"]
["padding: 20px;"]
[]
["font-family:\"Arial\""]
["}"]
[]
["#footer h4"]
["{color: #FFFFFF;}"]
[]
[]
[]
[]
[]
[]
[]
[]
[]
[]
[]
[]
[]
[]
[]
[]
[]
[]
[]
[]
[]
[]
[]
[]
[]
[]
[]
[]
[]
[]
[]
[]
[]
[]
[]
[]
[]
[]
[]
[]
[]
[]
[]
[]
[]
[]
[]
[]
[]
[]
[]
[]
[]
[]
[]
[]
[]
[]
[]
[]
[]
[]
[]
[]
[]
[]
[]
[]
[]
[]
[]
[]
[]
[]
[]
[]
[]
[]
[]
[]
[]
[]
[]
[]
[]
[]
[]
[]
[]
[]
[]
[]
[]
[]
[]
[]
[]
[]
[]
[]
[]
[]
[]
[]
[]
[]
[]
[]
[]
[]
[]
[]
[]
[]
["}"]
[]
["#navigation"]
["{"]
[null,"float: left;"]
[null,"width: 100%;"]
[null,"background: #28A828;"]
["}"]
[]
["#navigation ul"]
["{"]
[null,"margin: 0;"]
[null,"padding: 0;"]
[null,"font-family:\"Arial\""]
["}"]
[]
["#navigation ul li"]
["{"]
[null,"list-style-type: none;"]
[null,"display: inline;"]
["}"]
[]
["#navigation li a"]
["{"]
[null,"display: block;"]
[null,"float: left;"]
[null,"padding: 5px 10px;"]
[null,"color: #fff;"]
[null,"text-decoration: none;"]
[null,"border-right: 1px solid #fff;"]
["}"]
[]
["#navigation li a:hover { background: #610B0B; }"]
[]
["#content"]
["{"]
[null,"clear: left;"]
[null,"padding: 20px;"]
[null,"background: #E3F6CE;"]
["}     "]
[]
["#content h2"]
["{"]
[null,"color: #000;"]
[null,"font-size: 160%;"]
[null,"margin: 0 0 .5em;"]
["}"]
[]
["table.bb {"]
["border-collapse:collapse;}"]
[]
["table.bb th {"]
[]
["padding: 8px;"]
["font-family:\"Arial\";"]
["}"]
[]
["table.bb td {"]
[]
["padding: 8px;"]
["font-family:\"Arial\";"]
["}"]
[]
["#footer"]
["{"]
[null,"background: #610B0B;"]
[null,"text-align: right;"]
[null,"padding: 20px;"]
[]
[null,"font-family:\"Arial\""]
["}"]
[]
["#footer h4"]
["{color: #FFFFFF;}"]